[Event "1st FIDE Olympiad DIS 2023"]
[Site "Belgrade"]
[Date "2023.02.01"]
[Round "3.14"]
[White "Nkhupi Robert"]
[Black "Sadam Ali Sheikh"]
[Result "1-0"]
[ECO "C41"]
[WhiteElo "1738"]
[BlackElo "1578"]
[Annotator "NA RC COMBH"]
[PlyCount "53"]
[EventDate "2023.01.30"]
[EventType "team-tourn"]
[EventCountry "SRB"]
[SourceTitle "playchess.com"]
[Source "ChessBase"]
[SourceQuality "1"]
[WhiteTeam "Zambia"]
[BlackTeam "Kenya"]
[WhiteTeamCountry "ZAM"]
[BlackTeamCountry "KEN"]
[TimeControl "40/5400+30:1800+30"]

1. e4 {[%emt 0:00:08]} d6 {[%emt 0:00:31]} 2. d4 {[%emt 0:01:10]} Nf6 {[%emt 0:00:20]} 3. Nc3 {[%emt 0:01:12]} Nbd7 {[%emt 0:00:25]} 4. Be3 {[%emt 0:01:41]} e5 {[%emt 0:00:13]} 5. Nf3 {[%emt 0:02:54]} Be7 {[%emt 0:00:46]} 6. Bc4 {[%emt 0:00:55]} c6 {[%emt 0:00:11]} 7. a4 {[%emt 0:03:43]} Qc7 {[%emt 0:01:28]} 8. Qd2 {[%emt 0:01:44]} Ng4 {[%emt 0:00:35]} 9. O-O {[%emt 0:08:02]} Nxe3 {[%emt 0:00:33]} 10. Qxe3 {[%emt 0:00:13]} Nf6 {[%emt 0:05:53]} 11. h3 {[%emt 0:02:24]} h6 {[%emt 0:05:19]} 12. Rad1 {[%emt 0:02:00]} g5 {[%emt 0:09:01]} 13. dxe5 {[%emt 0:09:19]} dxe5 {[%emt 0:01:18]} 14. Ne2 {[%emt 0:16:42]} Nh5 {[%emt 0:00:09]} 15. Qb3 {[%emt 0:00:52]} Bf6 {[%emt 0:00:47]} 16. Rd2 {[%emt 0:00:51]} O-O {[%emt 0:05:56]} 17. Rfd1 {[%emt 0:00:26]} Nf4 {[%emt 0:00:49]} 18. Nxf4 {[%emt 0:01:28]} gxf4 {[%emt 0:00:01]} 19. Rd6 {[%emt 0:00:26]} Be7 {[%emt 0:00:18]} 20. Rxh6 {[%emt 0:00:46]} Kg7 {[%emt 0:00:48]} 21. Rh5 {[%emt 0:00:37]} f6 {[%emt 0:01:01]} 22. Be6 {[%emt 0:02:16]} Rd8 {[%emt 0:09:15]} 23. Rxd8 {[%emt 0:02:37]} Qxd8 {[%emt 0:00:10]} 24. Kh2 {[%emt 0:00:37]} Bc5 {[%emt 0:03:27]} 25. Nh4 {[%emt 0:02:06]} Qe8 {[%emt 0:09:22]} 26. Nf5+ {[%emt 0:00:36]} Kg6 {[%emt 0:02:42]} 27. Rh6+ {[%emt 0:00:48]} 1-0

[Event "1st FIDE Olympiad DIS 2023"]
[Site "Belgrade"]
[Date "2023.02.01"]
[Round "3.15"]
[White "Abiad Parra, Victor"]
[Black "Campos, Eugenio"]
[Result "1/2-1/2"]
[ECO "B90"]
[WhiteElo "1855"]
[BlackElo "2227"]
[Annotator "TA"]
[PlyCount "113"]
[EventDate "2023.01.30"]
[EventType "team-tourn"]
[EventCountry "SRB"]
[SourceTitle "playchess.com"]
[Source "ChessBase"]
[SourceQuality "1"]
[WhiteTeam "Venezuela"]
[BlackTeam "Angola"]
[WhiteTeamCountry "VEN"]
[BlackTeamCountry "ANG"]
[TimeControl "40/5400+30:1800+30"]

{[%evp 12,113,35,0,41,19,32,20,43,0,43,47,77,91,84,91,77,89,127,37,104,101,159,166,314,289,287,302,303,315,297,309,384,347,348,383,365,369,362,356,344,339,348,245,256,255,651,494,505,660,1481,777,1534,1315,2221,2218,2078,2003,1762,0,1658,633,966,1026,985,972,820,830,662,534,506,291,318,268,237,229,224,212,266,37,68,0,267,0,24,0,3,26,166,112,243,75,191,176,227,0,0,0,0,0,0,0,0,0]} 1. e4 {[%emt 0:00:03]} c5 {[%emt 0:00:11]} 2. Nf3 {[%emt 0:00:06]} d6 {[%emt 0:00:07]} 3. d4 {[%emt 0:00:04]} cxd4 {[%emt 0:00:06]} 4. Nxd4 {[%emt 0:00:05]} Nf6 {[%emt 0:00:06]} 5. Nc3 {[%emt 0:00:05]} a6 {[%emt 0:00:06]} 6. Be3 {[%emt 0:00:12]} Ng4 {[%emt 0:00:46]} 7. Bc1 {[%emt 0:00:26] Nowadays more popular than 7.Bg5.} Nc6 {[%emt 0:00:37] B90: Sicilian Najdorf: Unusual White 6th moves, 6 Be3 Ng4 and 6 Be3 e5.} 8. Nb3 {[%emt 0:05:30]} b5 {[%emt 0:04:22]} 9. Be2 {[%emt 0:02:43]} Nf6 {[%emt 0:01:00]} 10. Be3 {[%emt 0:02:06] [#]} Bb7 $146 {[%emt 0:01:51]} (10... b4 11. Nd5 Rb8 12. Nd4 $16) ({Predecessor:} 10... e6 11. g4 Bb7 12. a3 Ne5 13. f3 Nc4 14. Bxc4 bxc4 15. Nd4 e5 16. Nf5 g6 17. Ng3 d5 18. g5 d4 19. gxf6 Qxf6 {0-1 Lewicki,M (2319)-Lewtak,D (2323) POL-chT3 Podkarpackie 2016 (1.7)}) 11. a4 {[%emt 0:08:11][%cal Ba2a4,Ba4a5][%mdl 32]} b4 {[%emt 0:13:35]} 12. Nd5 {[%emt 0:00:15]} Nd7 {[%emt 0:01:54] Dodges Bb6} 13. a5 {[%emt 0:19:58] White is much more active. The black rooks are badly placed.} e6 {[%emt 0:01:25]} 14. Nb6 {[%emt 0:01:17]} Nxb6 {[%emt 0:00:20]} 15. Bxb6 {[%emt 0:00:02]} (15. axb6 $16 Be7 16. Qd2) 15... Qg5 {[%emt 0:00:25]} (15... Qh4 $14) 16. O-O $16 {[%emt 0:01:43]} Qe5 {[%emt 0:00:40]} (16... Be7 $142) 17. f4 {[%emt 0:09:36]} Qxe4 {[%emt 0:06:09]} (17... Qf6 $142 18. f5 Be7) 18. Bf3 $18 {[%emt 0:02:09]} Qc4 {[%emt 0:06:01] [#]} 19. f5 $1 {[%emt 0:09:30][%mdl 512]} Be7 {[%emt 0:01:08]} 20. fxe6 {[%emt 0:01:19]} fxe6 {[%emt 0:00:49]} 21. Nd4 {[%emt 0:18:30]} Nxd4 {[%emt 0:14:54]} 22. Bxb7 {[%emt 0:00:19]} Rb8 {[%emt 0:01:02]} 23. b3 {[%emt 0:02:18]} (23. Qxd4 Qxd4+ 24. Bxd4 Rxb7 $15) (23. Bxd4 Rxb7 24. Bxg7 Rg8 25. Qh5+ (25. Qf3 Rb8 $16) 25... Kd7 26. Qxh7 e5 $16) 23... Qb5 {[%emt 0:06:02]} 24. Qxd4 {[%emt 0:00:55]} (24. Bxd4 Rxb7 25. Qg4 (25. Bxg7 Rg8 $11) (25. Qf3 Rf8 $11) 25... Qd5 $16) 24... Rxb7 {[%emt 0:01:47]} 25. Qxg7 {[%emt 0:02:42]} Qe5 {[%emt 0:01:10]} 26. Qg4 {[%emt 0:05:49]} (26. Qf7+ Kd7) 26... Rf8 {[%emt 0:06:11]} 27. Qxb4 $40 {[%emt 0:04:11][%mdl 128] White is out for blood.} Rxf1+ {[%emt 0:05:02]} 28. Rxf1 {[%emt 0:00:06]} d5 {[%emt 0:00:35] Against Qc4} (28... Bd8 29. Re1 {[%mdl 64] Skewer} Bxb6+ 30. axb6 Qc5+ 31. Qxc5 dxc5 32. Rxe6+ Kd7) 29. Qa4+ {[%emt 0:00:31]} Rd7 {[%emt 0:00:16]} 30. Qc6 {[%emt 0:00:38] Qc8+ is the strong threat.} Qe2 {[%emt 0:02:43]} 31. c3 {[%emt 0:03:45] Qc8+ would be deadly.} h5 {[%emt 0:01:30]} 32. b4 {[%emt 0:00:17]} Bd8 {[%emt 0:04:28]} 33. Bc5 {[%emt 0:00:53][%csl Gc5][%cal Rf1f8]} Be7 {[%emt 0:00:19] Wards off Rf8+} 34. Qc8+ {[%emt 0:00:21]} Rd8 {[%emt 0:00:21]} 35. Qc6+ {[%emt 0:00:01]} Rd7 {[%emt 0:00:07]} 36. Bxe7 {[%emt 0:01:04]} (36. Qa8+ $142 Rd8 37. Qc6+ Rd7) 36... Kxe7 {[%emt 0:00:17][%mdl 4096] Endgame KQR-KQR} 37. Qc5+ {[%emt 0:00:25]} Rd6 {[%emt 0:00:13]} 38. Qc7+ {[%emt 0:00:25]} Rd7 {[%emt 0:00:11]} 39. Qf4 {[%emt 0:00:23][%csl Gf1][%cal Rf4f8]} Rd8 {[%emt 0:01:01] Prevents Qf8+} 40. Qg5+ {[%emt 0:00:48]} Kd7 {[%emt 0:03:33]} 41. Qg3 {[%emt 0:30:30]} Re8 {[%emt 0:31:15]} 42. Rf7+ {[%emt 0:00:40]} Re7 {[%emt 0:00:31]} 43. Rxe7+ {[%emt 0:00:00]} Kxe7 {[%emt 0:00:00] KQ-KQ} 44. Qc7+ {[%emt 0:00:00]} Kf6 {[%emt 0:00:00][%cal Re2e1]} 45. Qf4+ $2 {[%emt 0:00:00]} ({White has to play} 45. h3 $1 $18) 45... Ke7 $14 {[%emt 0:00:00][%cal Od5d4]} 46. Qc7+ $2 {[%emt 0:00:00]} (46. Qf2 $1 $14 Qd1+ 47. Qf1) 46... Kf6 $18 {[%emt 0:00:00][%cal Re2e1] [#]} 47. Qf4+ $2 {[%emt 0:00:00]} (47. h3 $1 $18) 47... Ke7 $11 {[%emt 0:00:00]} 48. Qh4+ {[%emt 0:00:00]} Kd7 {[%emt 0:00:00]} 49. Qf2 {[%emt 0:00:00]} Qe4 {[%emt 0:00:00]} (49... Qe5 $1 $11) 50. Qa7+ {[%emt 0:00:00]} ({White should play} 50. h3 $18) 50... Ke8 {[%emt 0:00:00]} (50... Kd8 $16 51. Qb8+ (51. Qxa6 Qe1+ 52. Qf1 Qe3+ 53. Kh1 Qxc3 $14) 51... Kd7 52. Qa7+ Kd8 53. Qxa6 Qe1+ 54. Qf1 Qe3+ 55. Kh1 Qxc3) 51. Qb8+ $2 {[%emt 0:00:00]} (51. Qxa6 $18 {aiming for Qc8+.} Qe1+ 52. Qf1 Qxc3 53. a6) 51... Ke7 {[%emt 0:00:00]} (51... Kd7 $16 {was called for.} 52. Qb7+ Kd8 53. Qb8+ (53. Qxa6 Qe1+ 54. Qf1 Qe3+ 55. Kh1 Qxc3 $16) 53... Kd7 54. Qa7+ Kd8 55. Qxa6 Qe1+ 56. Qf1 Qe3+ 57. Kh1 Qxc3) 52. Qc7+ {[%emt 0:00:00]} Kf6 {[%emt 0:00:00] [#]} (52... Ke8 {was necessary.} 53. Qb8+ Kd7 54. Qb7+ Kd8 55. Qb6+ (55. Qxa6 Qe1+ 56. Qf1 Qe3+ 57. Kh1 Qxc3 $16) 55... Ke7 56. Qc7+ (56. Qxa6 Qe3+ 57. Kf1 Qc1+ 58. Kf2 Qd2+ 59. Kg1 Qe3+ 60. Kf1 Qc1+ 61. Kf2 Qd2+ 62. Kg1 Qe3+ $14) 56... Ke8) 53. Qd8+ $2 {[%emt 0:00:00]} (53. h3 $1 $18) 53... Kf7 $1 {[%emt 0:00:00][%cal Re4e1] The position is equal.} 54. Qd7+ {[%emt 0:00:00]} Kf6 {[%emt 0:00:00][%cal Re4e1]} 55. Qd8+ {[%emt 0:00:00]} Kf7 $1 {[%emt 0:00:00][%cal Re4e1]} 56. Qd7+ {[%emt 0:00:00]} Kf6 {[%emt 0:00:00][%cal Re4e1]} 57. Qd8+ {[%emt 0:00:00] Weighted Error Value: White=0.86/Black=0.39} 1/2-1/2

[Event "1st FIDE Olympiad DIS 2023"]
[Site "Belgrade"]
[Date "2023.02.01"]
[Round "3.15"]
[White "Wambalo Wong"]
[Black "Sauti Harry"]
[Result "0-1"]
[ECO "D00"]
[WhiteElo "1337"]
[BlackElo "1693"]
[Annotator "NA RC COMBH"]
[PlyCount "54"]
[EventDate "2023.01.30"]
[EventType "team-tourn"]
[EventCountry "SRB"]
[SourceTitle "playchess.com"]
[Source "ChessBase"]
[SourceQuality "1"]
[WhiteTeam "Kenya"]
[BlackTeam "Zambia"]
[WhiteTeamCountry "KEN"]
[BlackTeamCountry "ZAM"]
[TimeControl "40/5400+30:1800+30"]

1. d4 {[%emt 0:00:30]} Nf6 {[%emt 0:01:28]} 2. Nf3 {[%emt 0:00:18]} g6 {[%emt 0:01:21]} 3. Bf4 {[%emt 0:00:24]} Bg7 {[%emt 0:01:19]} 4. Qd2 {[%emt 0:00:15]} d5 {[%emt 0:03:53]} 5. Nc3 {[%emt 0:00:10]} c6 {[%emt 0:01:44]} 6. e3 {[%emt 0:01:51]} O-O {[%emt 0:00:39]} 7. Be2 {[%emt 0:00:41]} b5 {[%emt 0:00:19]} 8. h4 {[%emt 0:01:40]} h5 {[%emt 0:01:24]} 9. Ne5 {[%emt 0:00:39]} b4 {[%emt 0:00:29]} 10. Na4 {[%emt 0:00:34]} a5 {[%emt 0:00:34]} 11. Nc5 {[%emt 0:00:26]} Nbd7 {[%emt 0:01:21]} 12. Ncxd7 {[%emt 0:00:40]} Bxd7 {[%emt 0:00:21]} 13. f3 {[%emt 0:01:20]} Rc8 {[%emt 0:00:56]} 14. g4 {[%emt 0:00:14]} c5 {[%emt 0:01:50]} 15. gxh5 {[%emt 0:01:56]} Nxh5 {[%emt 0:00:34]} 16. Bg5 {[%emt 0:04:27]} c4 {[%emt 0:00:43]} 17. f4 {[%emt 0:00:48]} c3 {[%emt 0:00:56]} 18. bxc3 {[%emt 0:00:30]} bxc3 {[%emt 0:00:28]} 19. Qd1 {[%emt 0:00:11]} Ng3 {[%emt 0:01:21]} 20. Rg1 {[%emt 0:00:46]} Nf5 {[%emt 0:06:22]} 21. Kf2 {[%emt 0:01:53]} Be8 {[%emt 0:00:17]} 22. h5 {[%emt 0:01:12]} f6 {[%emt 0:00:36]} 23. Bxf6 {[%emt 0:01:08]} exf6 {[%emt 0:00:38]} 24. hxg6 {[%emt 0:01:02]} fxe5 {[%emt 0:00:56]} 25. Bg4 {[%emt 0:03:37]} Qh4+ {[%emt 0:00:15]} 26. Ke2 {[%emt 0:01:58]} Qh2+ {[%emt 0:01:16]} 27. Kf3 {[%emt 0:01:19]} e4# {[%emt 0:02:21]} 0-1

[Event "1st FIDE Olympiad DIS 2023"]
[Site "Belgrade"]
[Date "2023.02.01"]
[Round "3.16"]
[White "Andriienko, Artom"]
[Black "Monterrey, Henry"]
[Result "1-0"]
[ECO "E68"]
[WhiteElo "1693"]
[BlackElo "1759"]
[Annotator "NA RC COMBH"]
[PlyCount "55"]
[EventDate "2023.01.30"]
[EventType "team-tourn"]
[EventCountry "SRB"]
[SourceTitle "playchess.com"]
[Source "ChessBase"]
[SourceQuality "1"]
[WhiteTeam "Ukraine"]
[BlackTeam "Venezuela"]
[WhiteTeamCountry "UKR"]
[BlackTeamCountry "VEN"]
[TimeControl "40/5400+30:1800+30"]

1. d4 {[%emt 0:00:05]} Nf6 {[%emt 0:00:08]} 2. c4 {[%emt 0:00:08]} g6 {[%emt 0:00:05]} 3. Nc3 {[%emt 0:00:11]} Bg7 {[%emt 0:00:05]} 4. Nf3 {[%emt 0:00:11]} O-O {[%emt 0:00:11]} 5. g3 {[%emt 0:00:05]} d6 {[%emt 0:00:12]} 6. Bg2 {[%emt 0:00:05]} c6 {[%emt 0:00:39]} 7. O-O {[%emt 0:00:35]} Nbd7 {[%emt 0:00:07]} 8. e4 {[%emt 0:06:46]} e5 {[%emt 0:00:41]} 9. d5 {[%emt 0:00:29]} cxd5 {[%emt 0:01:25]} 10. cxd5 {[%emt 0:02:41]} a6 {[%emt 0:00:06]} 11. Ne1 {[%emt 0:00:31]} Ne8 {[%emt 0:01:15]} 12. Nd3 {[%emt 0:02:16]} f5 {[%emt 0:00:28]} 13. f4 {[%emt 0:02:01]} exf4 {[%emt 0:06:01]} 14. Nxf4 {[%emt 0:00:32]} Ne5 {[%emt 0:00:26]} 15. Ne6 {[%emt 0:01:34]} Bxe6 {[%emt 0:00:15]} 16. dxe6 {[%emt 0:00:05]} Qb6+ {[%emt 0:05:30]} 17. Kh1 {[%emt 0:00:08]} Ng4 {[%emt 0:02:00]} 18. Qe2 {[%emt 0:09:59]} Bd4 {[%emt 0:13:13]} 19. e7 {[%emt 0:01:32]} Rf7 {[%emt 0:01:36]} 20. exf5 {[%emt 0:00:09]} Nf2+ {[%emt 0:04:32]} 21. Rxf2 {[%emt 0:00:11]} Bxf2 {[%emt 0:00:18]} 22. Bd5 {[%emt 0:00:10]} Nc7 {[%emt 0:01:58]} 23. Bh6 {[%emt 0:00:12]} Re8 {[%emt 0:03:31]} 24. fxg6 {[%emt 0:02:56]} Nxd5 {[%emt 0:05:20]} 25. gxf7+ {[%emt 0:00:06]} Kxf7 {[%emt 0:00:13]} 26. Qh5+ {[%emt 0:00:04]} Ke6 {[%emt 0:02:31]} 27. Qxd5+ {[%emt 0:00:06]} Kd7 {[%emt 0:01:19]} 28. Qf5+ {[%emt 0:00:06]} 1-0

[Event "1st FIDE Olympiad DIS 2023"]
[Site "Belgrade"]
[Date "2023.02.01"]
[Round "3.17"]
[White "Orsag, Milan"]
[Black "Alam, Khorshed"]
[Result "0-1"]
[ECO "E11"]
[WhiteElo "2308"]
[BlackElo "2065"]
[Annotator "TA"]
[PlyCount "104"]
[EventDate "2023.01.30"]
[EventType "team-tourn"]
[EventCountry "SRB"]
[SourceTitle "playchess.com"]
[Source "ChessBase"]
[SourceQuality "1"]
[WhiteTeam "Czech Republic"]
[BlackTeam "Bangladesh"]
[WhiteTeamCountry "CZE"]
[BlackTeamCountry "BAN"]
[TimeControl "40/5400+30:1800+30"]

{[%evp 10,104,28,17,37,26,42,23,40,48,57,57,67,37,70,28,27,35,43,38,44,36,39,37,65,54,45,27,31,0,0,0,0,0,19,5,26,0,0,0,0,0,0,0,0,0,0,0,0,0,0,0,0,0,0,0,59,0,10,0,19,0,0,0,58,11,79,0,5,0,0,0,0,-8,0,-164,-167,-158,-172,-312,-275,-317,-275,-258,-236,-241,-163,-182,-160,-314,-306,-2195,-1987,-29991,-29992,-29993,-29994]} 1. d4 {[%emt 0:00:10]} Nf6 {[%emt 0:00:39]} 2. Nf3 {[%emt 0:01:14]} e6 {[%emt 0:00:56]} 3. c4 {[%emt 0:00:31]} Bb4+ {[%emt 0:00:54]} 4. Nbd2 {[%emt 0:01:35]} O-O {[%emt 0:00:33]} 5. a3 {[%emt 0:00:18]} Bxd2+ {[%emt 0:00:54]} 6. Bxd2 {[%emt 0:00:19]} ({Don't play} 6. Kxd2 d6 $15) 6... d5 {[%emt 0:00:07] Black is weak on the dark squares. E11: Bogo-Indian.} 7. Bg5 {[%emt 0:02:19]} h6 {[%emt 0:00:57]} 8. Bh4 {[%emt 0:00:31]} Nbd7 {[%emt 0:01:41] White has an edge.} 9. e3 {[%emt 0:00:56]} c6 {[%emt 0:00:35]} 10. Qc2 {[%emt 0:03:21] [#]} b6 $146 {[%emt 0:02:15]} ({Predecessor:} 10... g5 11. Bg3 Ne4 12. Nd2 Nxd2 13. Qxd2 Qe7 14. h4 g4 15. O-O-O h5 16. f3 f5 {1-0 Serafimov,T (2379)-Jensen,L (2091) Arco op 29th 2007 (6)}) 11. Bd3 {[%emt 0:05:01]} Bb7 {[%emt 0:02:34]} 12. O-O {[%emt 0:00:22]} dxc4 {[%emt 0:00:58]} 13. Bxc4 {[%emt 0:03:18]} c5 {[%emt 0:00:27]} 14. Rfd1 {[%emt 0:02:49]} Bxf3 {[%emt 0:02:46]} 15. gxf3 {[%emt 0:00:06]} cxd4 {[%emt 0:00:07]} 16. Rxd4 {[%emt 0:00:55]} Qc7 {[%emt 0:00:41]} 17. Bg3 {[%emt 0:02:09]} Ne5 {[%emt 0:03:21]} 18. Qe2 {[%emt 0:01:55]} Nh5 {[%emt 0:03:38]} 19. Bxe5 {[%emt 0:29:02]} Qxe5 {[%emt 0:00:15]} 20. f4 {[%emt 0:00:07]} Qf5 {[%emt 0:00:35]} 21. Qf3 {[%emt 0:03:58]} (21. Bd3 $5 Qh3 $8 22. Rd1 $11) 21... Nf6 {[%emt 0:02:53]} 22. Rad1 {[%emt 0:05:03]} Qc2 {[%emt 0:03:26]} 23. R1d2 {[%emt 0:01:00]} Qg6+ {[%emt 0:00:46]} 24. Qg3 {[%emt 0:00:36] And now Qxg6 would win.} Qb1+ {[%emt 0:00:41]} 25. Kg2 {[%emt 0:00:54]} Rac8 {[%emt 0:01:40]} 26. Qf3 {[%emt 0:07:57]} Qg6+ {[%emt 0:03:34]} 27. Kh1 {[%emt 0:00:48]} Qb1+ {[%emt 0:00:41]} 28. Qd1 {[%emt 0:00:31]} Qf5 {[%emt 0:01:17]} 29. Bd3 {[%emt 0:01:58]} Qh3 {[%emt 0:01:44] [#] Hoping for ...Ng4.} 30. Bf1 {[%emt 0:01:38]} Qh4 {[%emt 0:00:36] Threatens to win with ...Ng4.} 31. Qf3 {[%emt 0:03:32]} Rc1 {[%emt 0:01:56]} 32. Kg2 {[%emt 0:00:31]} Ng4 {[%emt 0:04:52]} (32... Nd5 $11) 33. h3 {[%emt 0:00:31]} ({Of course not} 33. Qh3 Qxh3+ 34. Kxh3 Nxe3 35. fxe3 Rxf1 $11) (33. Qg3 $1 $14 Qxg3+ 34. hxg3) 33... Nf6 {[%emt 0:00:05]} (33... Nh2 $5 34. Kxh2 Rxf1 $11) 34. Bc4 {[%emt 0:01:47]} g6 {[%emt 0:04:11]} 35. b3 {[%emt 0:00:38]} Kg7 {[%emt 0:00:47]} 36. a4 {[%emt 0:00:14]} h5 {[%emt 0:05:47]} ({Better is} 36... Re8 $11) 37. Rd1 {[%emt 0:03:27]} (37. e4 $14 {might be stronger.}) 37... Rc2 {[%emt 0:00:37]} (37... Rxd1 $11 38. Rxd1 Re8) 38. R4d2 {[%emt 0:00:06]} ({White should try} 38. e4 $16) 38... Rc3 {[%emt 0:00:39] Inhibits .} 39. Rd8 {[%emt 0:01:19]} (39. Kg1 {simplifies} Re8 40. Kf1 g5 41. fxg5 Qxg5 42. Rd4) 39... Rxd8 {[%emt 0:01:10]} 40. Rxd8 {[%emt 0:00:06]} Rc2 {[%emt 0:00:14][%cal Of6e4] ...Ne4! would be deadly.} 41. Rd4 {[%emt 0:32:11] Dodges Ne4} Rc1 {[%emt 0:32:46]} 42. Bxe6 $2 {[%emt 0:08:32]} fxe6 $19 {[%emt 0:04:57]} 43. Qb7+ {[%emt 0:00:13] [#]} Kf8 $1 {[%emt 0:01:07]} ({And not} 43... Kh6 44. Qe7 Rc2 45. Qf8+ Kh7 46. Qf7+ Kh6 47. Qf8+ Kh7 48. Qf7+ Kh6 49. Qf8+ $11) 44. Rd2 {[%emt 0:00:00] Inhibits Rc2.} (44. Rd8+ {was called for.} Ne8 45. Rb8) 44... Nd5 {[%emt 0:00:00] aiming for ...Qd8.} 45. Qxa7 {[%emt 0:00:00]} Qe7 {[%emt 0:00:00]} 46. Qb8+ {[%emt 0:00:00]} Kg7 {[%emt 0:00:00]} 47. e4 {[%emt 0:00:00]} Nf6 {[%emt 0:00:00]} 48. Qxb6 {[%emt 0:00:00]} Nxe4 {[%emt 0:00:00]} 49. Re2 {[%emt 0:00:00]} (49. Rd4 $17 Nc5 50. Qb8) 49... Nc5 {[%emt 0:00:00] Strongly threatening ...Qd7.} 50. a5 $2 {[%emt 0:00:00]} (50. b4 Nxa4 51. Qd4+ Kf7 52. Ra2 Qb7+ 53. f3) 50... Qd7 {[%emt 0:00:00] ( -> ...Qd1)} 51. b4 {[%emt 0:00:00]} Qd1 {[%emt 0:00:00]} 52. Qa7+ {[%emt 0:00:00]} Kh6 {[%emt 0:00:00] Weighted Error Value: White=0.42/Black=0.14 (very precise)} 0-1